bitfinex/quotes_BTCUSD_20220202
["timestamp","ask_amount","ask_price","bid_price","bid_amount"]
[1643815287192,0.62711761,37632.0,37631.0,0.0031]
[1643815287391,0.28557192,37632.0,37631.0,0.0031]
[1643815287792,0.18557192,37632.0,37631.0,0.0031]
[1643815287990,0.55107489,37632.0,37631.0,0.0031]
[1643815288790,1.05107489,37632.0,37631.0,0.0031]
[1643815288994,1.05107489,37632.0,37628.0,0.002172]
[1643815288995,0.85,37630.0,37628.0,0.002172]
[1643815289193,1.59414798,37629.0,37624.0,0.0025]
[1643815289393,0.13657,37628.0,37626.0,0.00417363]
[1643815289693,0.9489,37627.0,37626.0,0.00417363]
[1643815289892,1.08547,37627.0,37626.0,0.0041]
[1643815290094,1.08547,37627.0,37624.0,0.00257363]
[1643815290095,1.07698824,37626.0,37624.0,0.00257363]
[1643815290293,1.03547,37625.0,37624.0,0.00257363]
[1643815290541,0.05,37621.0,37611.0,0.001]
[1643815290737,0.05,37621.0,37614.0,0.0001]
[1643815290738,0.03,37619.0,37614.0,0.0001]
[1643815290944,0.18547,37618.0,37614.0,0.0001]
[1643815291135,0.13657,37617.0,37614.0,0.0001]
[1643815291336,0.0489,37616.0,37614.0,0.0001]
[1643815291534,1.03657,37615.0,37614.0,0.0001]
[1643815291736,1.18547,37615.0,37614.0,0.0001]
[1643815292538,0.28547,37615.0,37614.0,0.0001]
[1643815292738,0.18547,37615.0,37614.0,0.0201]
[1643815292934,0.18547,37615.0,37614.0,0.0001]
[1643815293937,0.18547,37615.0,37614.0,0.10242052]
[1643815294177,0.18009299,37622.0,37620.0,0.02]
[1643815294375,0.13657,37621.0,37620.0,0.1103704]
[1643815294573,0.13657,37627.0,37620.0,0.0903704]
[1643815294776,0.70708849,37626.0,37623.0,0.02]
[1643815294974,0.70708849,37626.0,37619.0,0.02]
[1643815294975,0.38677812,37625.0,37619.0,0.02]
[1643815295174,0.13657,37624.0,37622.0,0.00034438]
[1643815295674,0.13657,37624.0,37623.0,0.02]
[1643815295874,0.13657,37624.0,37623.0,0.12455131]
[1643815296080,0.13657,37624.0,37623.0,0.35760323]
[1643815296474,0.13657,37624.0,37623.0,0.12455131]
[1643815296674,0.48657,37624.0,37623.0,0.12455131]
[1643815296877,0.13657,37624.0,37623.0,0.12455131]
[1643815297082,0.40932316,37630.0,37623.0,0.17455131]
[1643815297083,0.18007369,37629.0,37623.0,0.17455131]
[1643815297277,0.30932316,37630.0,37627.0,0.02]
[1643815297948,0.29723068,37634.0,37630.0,0.10303286]
[1643815298142,0.55299318,37638.0,37636.0,0.07682921]
[1643815298143,0.18007369,37638.0,37636.0,0.07682921]
[1643815298340,0.13657,37637.0,37636.0,0.07682921]
[1643815298538,0.13657,37637.0,37633.0,0.02]
[1643815298743,0.18007369,37640.0,37633.0,0.02]
[1643815298938,0.13657,37639.0,37635.0,0.00034426]
[1643815299141,0.18007369,37642.0,37636.0,0.28963263]
[1643815299339,0.13657,37641.0,37636.0,0.33963263]
[1643815299539,0.265117,37644.0,37639.0,0.10342137]
[1643815299740,0.265117,37644.0,37636.0,0.28963263]
[1643815299941,0.216908,37641.0,37637.0,0.02]
[1643815300137,0.265117,37644.0,37641.0,0.02]
[1643815300341,0.13657,37643.0,37641.0,0.02]
[1643815300538,0.13657,37643.0,37640.0,0.00034422]
[1643815300840,0.265117,37644.0,37640.0,0.00034422]
[1643815301037,0.38731947,37643.0,37634.0,0.26674895]
[1643815301239,0.33921647,37642.0,37640.0,0.00034422]
[1643815301442,0.68657,37641.0,37640.0,0.00034422]
[1643815301674,0.78657,37641.0,37640.0,0.00034422]
[1643815301875,0.23657,37641.0,37640.0,0.00034422]
[1643815302275,0.13657,37641.0,37639.0,0.26967986]
[1643815302477,0.1,37643.0,37639.0,0.26967986]
[1643815302478,0.1,37643.0,37639.0,0.24978313]
[1643815302679,0.13286617,37650.0,37639.0,0.24978313]
[1643815302680,0.1,37647.0,37639.0,0.24978313]
[1643815302876,0.116576,37646.0,37639.0,0.24978313]
[1643815303078,0.27818685,37644.0,37639.0,0.00010327]
[1643815303288,0.45290497,37643.0,37639.0,0.00010327]
[1643815303476,0.45290497,37643.0,37635.0,0.0198789]
[1643815303477,0.116576,37642.0,37635.0,0.0198789]
[1643815303677,0.34015736,37641.0,37640.0,0.00010327]
[1643815303878,0.55673336,37641.0,37640.0,0.00010327]
[1643815304476,0.331925,37641.0,37640.0,0.00010327]
[1643815304680,0.216576,37641.0,37638.0,0.32117826]
[1643815304877,0.1,37640.0,37639.0,0.00010327]
[1643815305075,0.216576,37640.0,37639.0,0.00010327]
[1643815305278,0.766576,37640.0,37639.0,0.00010327]
[1643815305715,0.866576,37640.0,37639.0,0.00010327]
[1643815305916,0.266576,37640.0,37634.0,7.397e-05]
[1643815306116,0.116576,37639.0,37638.0,0.00034424]
[1643815306719,0.566576,37639.0,37638.0,0.00034424]
[1643815307115,0.90816075,37639.0,37634.0,0.02007397]
[1643815307315,0.116576,37638.0,37634.0,0.02]
[1643815307516,0.15,37640.0,37634.0,0.02]
[1643815307717,0.15,37640.0,37637.0,0.02]
[1643815307917,0.116576,37639.0,37637.0,0.02]
[1643815308319,0.0489,37638.0,37634.0,7.397e-05]
[1643815308521,0.0489,37638.0,37630.0,0.02]
[1643815308522,0.5150954,37637.0,37636.0,0.00034342]
[1643815308717,1.1139954,37637.0,37636.0,0.00034342]
[1643815308920,1.3795854,37637.0,37636.0,0.00034342]
[1643815309177,1.64771782,37637.0,37636.0,0.00034342]
[1643815309372,1.65359439,37637.0,37636.0,0.00034342]
[1643815309571,1.24919842,37637.0,37633.0,7.397e-05]
[1643815309768,0.216576,37636.0,37635.0,0.00010303]
[1643815309967,0.418456,37636.0,37635.0,0.00010303]
[1643815310170,0.7925135,37636.0,37635.0,0.00010303]
[1643815310371,0.8925135,37636.0,37635.0,0.00010303]
[1643815310570,1.018456,37636.0,37635.0,0.00010303]
[1643815310770,1.018456,37636.0,37633.0,7.397e-05]
[1643815310969,1.018456,37636.0,37619.0,0.605023]
[1643815310970,0.2494917,37635.0,37630.0,7.397e-05]
[1643815311171,0.68304896,37631.0,37630.0,7.397e-05]
[1643815311372,0.54852496,37631.0,37630.0,7.397e-05]
[1643815311573,0.54852496,37631.0,37627.0,0.02]
[1643815311876,0.0989,37631.0,37630.0,0.09478796]
[1643815312073,0.0989,37631.0,37630.0,0.11478796]
[1643815312372,0.0989,37631.0,37630.0,0.02]
[1643815313228,0.1989,37631.0,37626.0,7.397e-05]
[1643815313432,0.1989,37631.0,37629.0,0.00010297]
[1643815313627,0.1989,37631.0,37630.0,0.02]
[1643815314329,0.0989,37631.0,37630.0,0.11515771]
[1643815315627,0.05,37631.0,37630.0,0.11515771]
[1643815316029,9.3e-05,37631.0,37630.0,0.09515771]
[1643815316228,9.3e-05,37631.0,37630.0,0.0465]
[1643815316430,0.300093,37631.0,37630.0,0.0465]
[1643815316681,0.416669,37631.0,37630.0,0.0465]
[1643815316881,0.466669,37631.0,37630.0,0.0465]
[1643815317382,0.566669,37631.0,37630.0,0.0265]
[1643815317582,1.3396265,37631.0,37630.0,0.0265]
[1643815317784,0.965569,37631.0,37630.0,0.0265]
[1643815318483,1.33114319,37631.0,37630.0,0.0265]
[1643815318683,0.98114319,37631.0,37630.0,0.0265]
[1643815318983,0.315569,37631.0,37630.0,0.0265]
[1643815319185,0.315569,37631.0,37630.0,0.0465]
[1643815319186,0.215569,37631.0,37630.0,0.0465]
[1643815319384,9.3e-05,37631.0,37630.0,0.0465]
[1643815319584,9.3e-05,37631.0,37630.0,0.5965]
[1643815319984,0.06644087,37640.0,37636.0,0.2862897]
[1643815320288,0.116576,37639.0,37638.0,0.02]
[1643815320532,0.4527773,37640.0,37632.0,7.397e-05]
[1643815320734,0.47364542,37639.0,37632.0,7.397e-05]
[1643815320931,0.18302432,37638.0,37632.0,7.397e-05]
[1643815321130,0.55640357,37637.0,37634.0,0.02]
[1643815321330,0.116576,37636.0,37630.0,0.0265]
[1643815321531,0.24432245,37632.0,37630.0,0.0265]
[1643815321731,0.24432245,37632.0,37631.0,0.02]
[1643815321932,0.24432245,37632.0,37630.0,0.0265]
[1643815321933,0.70993445,37632.0,37630.0,0.0265]
[1643815322130,0.366576,37631.0,37630.0,0.0265]
[1643815322336,0.466576,37631.0,37630.0,0.0265]
[1643815322531,0.216576,37631.0,37630.0,0.0465]
[1643815322730,0.08790649,37631.0,37630.0,0.0465]
[1643815323333,0.29432245,37632.0,37630.0,0.0265]
[1643815323533,0.34322245,37632.0,37630.0,0.0265]
[1643815324179,0.116576,37631.0,37630.0,0.0265]
[1643815324385,0.265476,37631.0,37630.0,0.0265]
[1643815324578,0.265476,37631.0,37630.0,0.0465]
[1643815324780,0.1489,37631.0,37630.0,0.0465]
[1643815325180,0.0489,37631.0,37630.0,0.0465]
[1643815325985,0.05,37632.0,37630.0,0.0465]
[1643815326283,0.15,37634.0,37630.0,0.0265]
[1643815326482,0.15,37634.0,37630.0,0.02657397]
[1643815326784,0.0489,37638.0,37630.0,0.02657397]
[1643815326986,0.0489,37638.0,37637.0,0.27618602]
[1643815327187,0.3740575,37645.0,37642.0,0.02]
[1643815327384,0.116576,37644.0,37643.0,0.09142059]
[1643815327588,0.116576,37645.0,37643.0,0.32112353]
[1643815328015,0.23392231,37651.0,37643.0,0.54323924]
[1643815328218,0.116576,37650.0,37649.0,0.02]
[1643815329418,0.33300842,37653.0,37649.0,0.02]
[1643815329419,0.20016,37653.0,37649.0,0.02]
[1643815329616,0.20016,37653.0,37650.0,0.1165633]
[1643815329617,0.116576,37652.0,37650.0,0.1165633]
[1643815329818,0.0002,37657.0,37651.0,0.51349997]
[1643815330022,0.116576,37656.0,37653.0,0.02]
[1643815330422,0.0002,37657.0,37653.0,0.02]
[1643815331894,0.0002,37657.0,37654.0,0.450959]
[1643815332095,0.0002,37657.0,37655.0,0.77912264]
[1643815332296,0.0002,37657.0,37656.0,0.74195616]
[1643815332696,0.0002,37657.0,37656.0,0.350959]
[1643815333399,0.0002,37657.0,37653.0,0.07]
[1643815333797,0.0002,37657.0,37653.0,0.02]
[1643815333999,0.0002,37657.0,37654.0,0.350959]
[1643815334196,0.0002,37657.0,37654.0,0.400959]
[1643815334397,0.0002,37657.0,37655.0,0.350959]
[1643815334599,0.0002,37657.0,37653.0,0.07]
[1643815335718,0.0002,37657.0,37653.0,0.02]
[1643815338126,0.23940816,37656.0,37653.0,0.02]
[1643815338324,0.23940816,37656.0,37651.0,0.30479049]
[1643815338325,0.37034639,37655.0,37651.0,0.30479049]
[1643815338722,0.1989,37654.0,37652.0,0.02]
[1643815338924,0.35655753,37653.0,37648.0,0.02027083]
[1643815339176,0.0489,37652.0,37648.0,0.00027083]
[1643815339374,0.50830442,37651.0,37648.0,0.00027083]
[1643815339573,0.39172842,37651.0,37646.0,0.11177862]
[1643815339776,0.28051528,37647.0,37646.0,0.09177862]
[1643815339978,0.68068682,37647.0,37646.0,0.02]
[1643815340174,0.79726282,37647.0,37645.0,0.02162661]
[1643815340375,0.91751275,37646.0,37645.0,0.02162661]
[1643815340574,0.96641275,37646.0,37645.0,0.02162661]
[1643815340977,0.265476,37646.0,37645.0,0.02]
[1643815341378,0.165476,37646.0,37645.0,0.02]
[1643815341581,0.0489,37646.0,37645.0,0.02]
[1643815341977,0.0489,37654.0,37645.0,0.02]
[1643815342180,0.0002,37657.0,37655.0,0.36897302]
[1643815342379,0.33478193,37661.0,37655.0,0.09079059]
[1643815342576,0.116576,37660.0,37657.0,0.02]
[1643815343041,0.35471827,37659.0,37655.0,0.09079059]
[1643815343237,0.36705068,37658.0,37653.0,0.02]
[1643815343546,0.36705068,37658.0,37650.0,0.21422124]
[1643815343547,0.116576,37657.0,37656.0,0.29461802]
[1643815343739,0.116576,37658.0,37656.0,0.02]
[1643815343937,0.096576,37658.0,37656.0,0.02]
[1643815344137,0.096576,37658.0,37657.0,0.08505376]
[1643815345240,0.4322111,37660.0,37657.0,0.08505376]
[1643815345441,0.22191911,37658.0,37657.0,0.08505376]
[1643815345642,0.65954465,37658.0,37657.0,0.10505376]
[1643815346044,0.31851811,37658.0,37657.0,0.10505376]
[1643815346240,0.41851811,37658.0,37657.0,0.02]
[1643815346441,0.81814854,37658.0,37651.0,0.25250958]
[1643815346671,0.1,37657.0,37650.0,0.24337929]
[1643815346876,0.1489,37657.0,37650.0,0.24337929]
[1643815347072,0.1489,37657.0,37656.0,0.02]
[1643815347274,0.145499,37657.0,37656.0,0.0948632]
[1643815348579,0.145499,37657.0,37656.0,0.32846893]
[1643815348975,0.145499,37657.0,37656.0,0.32909337]
[1643815349577,0.20237876,37665.0,37660.0,0.02]
[1643815349776,0.096599,37664.0,37660.0,0.00062444]
[1643815350177,0.33178316,37663.0,37660.0,0.02062444]
[1643815350421,0.096599,37662.0,37660.0,0.02062444]
[1643815350621,0.18170594,37666.0,37661.0,0.28254639]
[1643815350622,0.096599,37664.0,37661.0,0.28254639]
[1643815350822,0.096599,37665.0,37662.0,0.11833136]
[1643815351022,0.096599,37665.0,37662.0,0.1189558]
[1643815351225,0.096599,37665.0,37662.0,0.0989558]
[1643815351620,0.096599,37665.0,37664.0,0.02]
[1643815351823,0.42886372,37666.0,37664.0,0.02062444]
[1643815352025,1.54559751,37665.0,37664.0,0.00062444]
[1643815352226,1.70493551,37665.0,37664.0,0.00062444]
[1643815352423,1.65383551,37665.0,37664.0,0.00062444]
[1643815352625,1.62731551,37665.0,37664.0,0.00062444]
[1643815352823,1.80723248,37665.0,37664.0,0.00062444]
[1643815353626,1.62731551,37665.0,37664.0,0.00062444]
[1643815355498,0.278317,37665.0,37664.0,0.00062444]
[1643815355703,0.145499,37665.0,37664.0,0.00062444]
[1643815357099,0.145499,37665.0,37664.0,0.24333036]
[1643815357501,0.145499,37665.0,37664.0,0.00062444]
[1643815358023,0.795499,37665.0,37664.0,0.00062444]
[1643815358228,0.245499,37665.0,37664.0,0.00062444]
[1643815358626,0.145499,37665.0,37664.0,0.00062444]
[1643815359031,0.395499,37665.0,37664.0,0.00062444]
[1643815359527,0.395499,37665.0,37664.0,0.5417141]
[1643815359727,0.395499,37665.0,37664.0,0.26571697]
[1643815359927,0.145499,37665.0,37664.0,0.26571697]
[1643815361127,0.145499,37665.0,37664.0,0.49371356]
[1643815362974,0.145499,37665.0,37664.0,0.26571697]
[1643815364274,0.145499,37665.0,37664.0,0.00062444]
[1643815364976,0.495499,37665.0,37664.0,0.00062444]
[1643815365425,0.595499,37665.0,37664.0,0.00062444]
[1643815366430,0.245499,37665.0,37664.0,0.00062444]
[1643815366828,0.145499,37665.0,37664.0,0.00062444]
[1643815368829,0.096599,37665.0,37664.0,0.00062444]
[1643815369870,0.47239413,37667.0,37664.0,0.00062439]
[1643815370072,0.0971142,37666.0,37664.0,0.00062439]
[1643815370270,0.646599,37665.0,37664.0,0.00062439]
[1643815370470,0.98140285,37665.0,37664.0,0.00062439]
[1643815370671,1.08140285,37665.0,37664.0,0.00062439]
[1643815371279,1.13030285,37665.0,37664.0,0.00062439]
[1643815371675,1.13030285,37665.0,37664.0,0.00051821]
[1643815371676,1.53030285,37665.0,37664.0,0.00051821]
[1643815371877,1.71024013,37665.0,37664.0,0.00051821]
[1643815372673,1.31024013,37665.0,37664.0,0.00051821]
[1643815373719,1.37664413,37665.0,37664.0,0.00051821]
[1643815375122,1.42664413,37665.0,37664.0,0.00051821]
[1643815375320,1.24670685,37665.0,37664.0,0.00051821]
[1643815375522,1.55316479,37665.0,37664.0,0.00051821]
[1643815375720,2.33967479,37665.0,37664.0,0.00045821]
[1643815375920,2.23977432,37665.0,37664.0,0.00045821]
[1643815376121,2.33977432,37665.0,37664.0,0.00045821]
[1643815376320,2.95107432,37665.0,37664.0,0.00045821]
[1643815376769,3.19099829,37665.0,37664.0,0.00045821]
[1643815376971,3.09099829,37665.0,37664.0,0.00045821]
[1643815377179,3.28455432,37665.0,37664.0,0.00045821]
[1643815377572,2.94975047,37665.0,37664.0,0.00045821]
[1643815378371,2.99975047,37665.0,37664.0,0.00045821]
[1643815378773,2.94975047,37665.0,37664.0,0.00045821]
[1643815379171,2.44975047,37665.0,37664.0,0.00045821]
[1643815381825,2.49975047,37665.0,37664.0,0.00045821]
[1643815382827,2.44975047,37665.0,37664.0,0.00045821]
[1643815383047,1.79975047,37665.0,37664.0,0.02045821]
[1643815383228,0.89320853,37665.0,37664.0,0.02045821]
[1643815383826,0.89320853,37665.0,37664.0,0.39281409]
[1643815384028,0.89320853,37665.0,37664.0,0.60370413]
[1643815384290,0.79660953,37665.0,37664.0,0.60370413]
[1643815384489,0.00017389,37675.0,37666.0,0.85]
[1643815384791,0.00017389,37675.0,37674.0,0.40078827]
[1643815384989,0.00017389,37675.0,37674.0,0.68355719]
[1643815385186,0.01820886,37676.0,37674.0,0.6143104]
[1643815385387,0.01820886,37676.0,37674.0,0.00062436]
[1643815385388,0.096599,37675.0,37674.0,0.00062436]
[1643815385589,0.446599,37675.0,37674.0,0.00062436]
[1643815386388,0.69777037,37675.0,37674.0,0.00062436]
[1643815386586,0.69777037,37675.0,37674.0,0.00062432]
[1643815386786,1.24777037,37675.0,37674.0,0.00062432]
[1643815387186,0.79777037,37675.0,37674.0,0.00062432]
[1643815387786,1.09777037,37675.0,37674.0,0.00062432]
[1643815388036,2.04747731,37675.0,37674.0,4.32e-06]
[1643815388230,2.04647983,37675.0,37674.0,0.00030799]
[1643815388430,2.43416751,37675.0,37674.0,0.00030799]
[1643815388630,2.08416751,37675.0,37674.0,0.00030799]
[1643815388831,2.08416751,37675.0,37651.0,0.06695992]
[1643815388832,0.9,37674.0,37651.0,0.06695992]
[1643815389133,0.9,37674.0,37650.0,0.02]
[1643815389134,0.24290038,37656.0,37650.0,0.02]
[1643815389433,0.0489,37655.0,37650.0,0.02]
[1643815389634,0.0489,37655.0,37649.0,0.27843005]
[1643815389832,0.42642676,37655.0,37648.0,0.00010291]
[1643815390032,0.42642676,37655.0,37643.0,0.11918311]
[1643815390236,0.066433,37651.0,37643.0,0.09918311]
[1643815390432,0.0489,37650.0,37643.0,0.09918311]
[1643815390634,0.0489,37650.0,37639.0,0.02]
[1643815390835,0.23173819,37642.0,37639.0,0.02]
[1643815391033,0.0489,37641.0,37639.0,0.02]
[1643815391234,0.096599,37640.0,37639.0,0.02]
[1643815391432,0.29264358,37640.0,37639.0,0.02]
[1643815391879,0.38924258,37640.0,37637.0,0.002]
[1643815392072,0.29264358,37640.0,37637.0,0.002]
[1643815392273,0.0489,37640.0,37637.0,0.002]
[1643815392574,0.0478,37640.0,37637.0,0.002]
[1643815392775,0.096599,37639.0,37637.0,0.00234278]
[1643815392972,0.0489,37638.0,37637.0,0.00234278]
[1643815393175,0.70110856,37638.0,37637.0,0.00234278]
[1643815393372,0.35296478,37638.0,37637.0,0.00234278]
[1643815393872,0.35296478,37638.0,37637.0,0.002]
[1643815393873,0.77916408,37638.0,37637.0,0.002]
[1643815394079,0.4,37636.0,37633.0,0.002]
[1643815394275,0.62302576,37635.0,37634.0,7.488e-05]
[1643815394474,1.28432576,37635.0,37634.0,7.488e-05]
[1643815394676,1.456799,37635.0,37634.0,7.488e-05]
[1643815394875,2.95601832,37635.0,37633.0,0.002]
[1643815395074,0.996599,37634.0,37633.0,0.002]
[1643815395280,1.145499,37634.0,37633.0,0.002]
[1643815396145,1.53174542,37634.0,37633.0,0.002]
[1643815396644,1.51174542,37634.0,37633.0,0.002]
[1643815397246,0.75,37633.0,37618.0,0.001]
[1643815397449,0.75,37633.0,37619.0,0.0001]
[1643815397450,0.6113,37630.0,37619.0,0.0001]
[1643815397648,0.06648293,37627.0,37626.0,0.00136809]
[1643815397855,1.17107748,37627.0,37626.0,0.00136809]
[1643815398045,1.96736748,37627.0,37626.0,0.00136809]
[1643815398248,1.73856832,37627.0,37626.0,0.00136809]
[1643815398449,1.45943384,37627.0,37626.0,0.00136809]
[1643815398649,1.45943384,37627.0,37619.0,0.0001]
[1643815398650,0.92175,37627.0,37625.0,0.00026593]
[1643815398848,0.07656,37626.0,37625.0,0.00026593]
[1643815399049,0.12546,37626.0,37625.0,0.00026593]
[1643815399677,0.37546,37626.0,37619.0,0.08183398]
[1643815399878,0.07656,37625.0,37619.0,0.0501]
[1643815400076,0.07656,37625.0,37624.0,0.00026594]
[1643815400282,0.0489,37625.0,37624.0,0.00026594]
[1643815400482,0.12546,37625.0,37624.0,0.00026594]
[1643815400680,1.15130334,37625.0,37624.0,0.00026594]
[1643815400882,1.15130334,37625.0,37619.0,0.02146333]
[1643815400883,1.15572272,37625.0,37619.0,0.02146333]
[1643815401080,0.17656,37624.0,37619.0,0.02146333]
[1643815401282,0.51088533,37623.0,37619.0,0.02146333]
[1643815401481,0.07656,37622.0,37619.0,0.02146333]
[1643815401782,1.00455845,37621.0,37619.0,0.02146333]
[1643815401979,0.07656,37620.0,37619.0,0.02146333]
[1643815402179,0.22546,37620.0,37619.0,0.02146333]
[1643815402581,0.8143713,37620.0,37619.0,0.02146333]
[1643815403031,0.8143713,37620.0,37619.0,0.0001]
[1643815403330,0.82079751,37620.0,37619.0,0.0001]
[1643815403727,0.87079751,37620.0,37619.0,0.0001]
[1643815404126,0.52546,37620.0,37619.0,0.0001]
[1643815404326,0.86138313,37620.0,37619.0,0.0001]
[1643815404527,0.27546,37620.0,37619.0,0.0001]
[1643815404727,0.22546,37620.0,37619.0,0.0001]
[1643815404927,0.12546,37620.0,37619.0,0.0001]
[1643815405128,0.1,37628.0,37620.0,0.25091999]
[1643815405328,0.1,37628.0,37624.0,0.07657198]
[1643815405732,0.20028,37634.0,37624.0,0.07657198]
[1643815405928,0.44440934,37631.0,37626.0,0.20015349]
[1643815406128,0.22344503,37631.0,37626.0,0.20015349]
[1643815407175,0.20028,37634.0,37626.0,0.20015349]
[1643815407373,0.20028,37634.0,37633.0,0.0871936]
[1643815407574,0.20028,37634.0,37633.0,0.6871936]
[1643815407771,0.1,37634.0,37633.0,0.09932769]
[1643815408374,0.1,37634.0,37630.0,0.2252472]
[1643815408571,0.1,37631.0,37623.0,0.132866]
[1643815408873,0.1,37624.0,37623.0,0.37234842]
[1643815409070,0.1,37624.0,37623.0,0.72348442]
[1643815409271,0.367547,37637.0,37632.0,0.2283436]
[1643815409570,0.1,37638.0,37632.0,0.07736933]
[1643815410074,0.23009552,37635.0,37632.0,0.07736933]
[1643815410520,0.367547,37637.0,37632.0,0.07736933]
[1643815410725,0.1,37636.0,37632.0,0.07736933]
[1643815410926,0.1,37638.0,37632.0,0.07736933]
[1643815412124,0.42684612,37638.0,37630.0,7.489e-05]
[1643815412328,0.05,37631.0,37627.0,7.489e-05]
[1643815412524,0.32143656,37630.0,37627.0,7.489e-05]
[1643815412725,0.1,37629.0,37627.0,7.489e-05]
[1643815412924,0.1,37629.0,37619.0,0.00017489]
[1643815413123,0.23322879,37632.0,37623.0,0.0003388]
[1643815413428,0.15,37633.0,37627.0,0.09465453]
[1643815413623,0.1,37633.0,37627.0,0.09465453]
[1643815414023,0.1,37636.0,37627.0,0.09465453]
[1643815414283,0.06645,37633.0,37628.0,0.28435241]
[1643815414483,0.58468522,37636.0,37631.0,0.28087824]
[1643815414484,0.05,37635.0,37631.0,0.28087824]
[1643815414689,0.15,37635.0,37631.0,0.28087824]
[1643815415384,0.05,37637.0,37631.0,0.5910242]
[1643815415583,0.05,37637.0,37635.0,0.26951088]
[1643815415782,0.05,37637.0,37635.0,0.35581261]
[1643815416784,0.05,37637.0,37635.0,0.08630173]
[1643815417785,0.15,37637.0,37635.0,0.39122455]
[1643815418231,0.1,37637.0,37635.0,0.39122455]
[1643815418432,0.00055249,37641.0,37635.0,0.38622455]
[1643815418737,0.00055249,37641.0,37638.0,0.1]
[1643815418929,0.095,37647.0,37639.0,0.72749727]
[1643815419429,0.00055252,37641.0,37640.0,1.05723026]
[1643815419627,0.00055252,37641.0,37640.0,0.87877959]
[1643815420231,0.01815743,37648.0,37640.0,0.87877959]
[1643815420431,0.00055253,37642.0,37641.0,0.40635487]
[1643815420629,0.00055253,37642.0,37640.0,0.87877959]
[1643815420829,0.01767851,37648.0,37642.0,0.8]
[1643815421032,0.01767851,37648.0,37647.0,0.23776228]
[1643815421237,0.20711451,37653.0,37647.0,0.43846248]
[1643815421431,0.20711451,37653.0,37648.0,0.08108823]
[1643815421678,0.20711451,37653.0,37636.0,0.61413048]
[1643815421679,0.05,37649.0,37636.0,0.61413048]
[1643815421881,0.05,37643.0,37636.0,0.61413048]
[1643815422081,0.045,37637.0,37636.0,0.02113048]
[1643815422279,0.05,37637.0,37636.0,0.02113048]
[1643815422677,0.26983514,37637.0,37636.0,0.02113048]
[1643815423082,0.36983514,37637.0,37636.0,0.02113048]
[1643815423278,0.36983514,37637.0,37633.0,0.07704883]
[1643815423480,0.36983514,37637.0,37628.0,7.489e-05]
[1643815423683,0.095,37634.0,37627.0,0.23052661]
[1643815423885,0.095,37634.0,37629.0,0.2738852]
[1643815424081,0.095,37634.0,37631.0,0.00034011]
[1643815424283,0.045,37632.0,37631.0,0.00034011]
[1643815424781,0.215354,37633.0,37631.0,0.00034011]
[1643815424782,0.315354,37633.0,37631.0,0.00034011]
[1643815424980,0.315354,37633.0,37628.0,0.09926782]
[1643815425281,0.115354,37633.0,37628.0,0.09926782]
[1643815425529,0.0489,37633.0,37628.0,0.09934271]
[1643815425932,0.045,37629.0,37628.0,0.09934271]
[1643815426132,0.0489,37633.0,37628.0,0.09926782]
[1643815426330,0.28036229,37631.0,37628.0,0.09926782]
[1643815426633,0.28036229,37631.0,37627.0,7.489e-05]
[1643815426828,0.28036229,37631.0,37625.0,0.004096]
[1643815426829,0.0489,37630.0,37625.0,0.004096]
[1643815427231,0.1489,37630.0,37625.0,0.004096]
[1643815427430,0.1489,37630.0,37625.0,0.00417089]
[1643815427632,0.1989,37630.0,37625.0,0.00417089]
[1643815428229,0.1989,37630.0,37626.0,0.09078366]
[1643815428429,0.1989,37630.0,37626.0,0.09085855]
[1643815429484,0.066443,37639.0,37626.0,0.09085855]
[1643815429680,0.0489,37637.0,37627.0,0.40514848]
[1643815429883,0.18003103,37642.0,37627.0,0.39803848]
[1643815430081,0.18003103,37642.0,37641.0,0.07447219]
[1643815430281,0.25,37642.0,37641.0,0.07447219]
[1643815431280,0.35,37642.0,37641.0,0.07447219]
[1643815431979,0.25,37642.0,37641.0,0.07447219]
[1643815433025,0.56818063,37642.0,37641.0,0.07447219]
[1643815433225,0.86960921,37642.0,37634.0,0.00010197]
[1643815433427,0.98604521,37642.0,37629.0,0.02089331]
[1643815433627,0.1489,37641.0,37634.0,0.00010197]
[1643815433826,0.1989,37641.0,37634.0,0.00010197]
[1643815434026,0.066451,37639.0,37634.0,0.00010197]
[1643815434225,0.81000918,37635.0,37634.0,0.00010197]
[1643815434430,0.5238878,37635.0,37634.0,0.00010197]
[1643815434625,0.6738878,37635.0,37630.0,0.08322354]
[1643815434825,0.166453,37634.0,37633.0,0.00010197]
[1643815435024,0.166453,37634.0,37619.0,0.33655339]
[1643815435025,0.26605255,37627.0,37624.0,0.07491802]
[1643815435225,0.26605255,37627.0,37615.0,0.2]
[1643815435427,0.26605255,37627.0,37616.0,0.56266845]
[1643815436031,0.26605255,37627.0,37616.0,7.534e-05]
[1643815436227,0.26605255,37627.0,37623.0,0.08482758]
[1643815436424,0.61220901,37627.0,37623.0,0.08482758]
[1643815436684,0.71220901,37627.0,37623.0,0.08482758]
[1643815436883,0.71220901,37627.0,37622.0,7.534e-05]
[1643815437086,0.61220901,37627.0,37621.0,0.28882278]
[1643815437286,0.26605255,37627.0,37623.0,0.00010192]
[1643815437786,0.38394976,37626.0,37623.0,0.00010192]
[1643815438085,0.43284976,37626.0,37623.0,0.00010192]
[1643815438284,0.15,37625.0,37617.0,0.08705265]
[1643815438484,0.0489,37624.0,37623.0,0.00010192]
[1643815438884,0.24884034,37628.0,37623.0,0.00010192]
[1643815439482,0.24884034,37628.0,37620.0,7.534e-05]
[1643815439687,0.24884034,37628.0,37624.0,0.00033871]
[1643815439882,0.24884034,37628.0,37625.0,0.08880602]
[1643815440084,0.24884034,37628.0,37625.0,0.08888136]
[1643815440284,0.04962,37630.0,37625.0,0.08888136]
[1643815440527,0.03794889,37630.0,37625.0,0.08888136]
[1643815440929,0.03794889,37630.0,37625.0,0.08914472]
[1643815441930,0.3041809,37630.0,37625.0,0.08880602]
[1643815442930,0.1,37629.0,37625.0,0.08880602]
[1643815443130,0.4002481,37629.0,37625.0,0.08880602]
[1643815443431,0.06028066,37629.0,37625.0,0.38107029]
[1643815443632,0.05,37630.0,37625.0,0.38107029]
[1643815443831,0.05,37634.0,37625.0,0.38107029]
[1643815444037,0.02565,37635.0,37626.0,0.41674438]
[1643815444289,0.02565,37635.0,37626.0,0.51674438]